{"text_format":"3","workbook":"xlsx","n_sheets":4,"sheets":["Kassavirtalaskelma","Kuukausitulot","Kuukausikulut","KAAVION TIEDOT"],"not_rendered":{"charts":1,"defined_names":10},"read":"whole","date_system":"1900"}

{"sheet":"Kassavirtalaskelma","index":0,"n_rows":9,"n_cols":5,"rows_kept":9}
[null,"Nimi"]
[null,"Perheen budjetti"]
[null,{"$f":"TEXT(TODAY(),\"kkkk\")","v":"tammikuu"}]
[null,{"$f":"YEAR(TODAY())","v":2017}]
[null,"Muistiinpano: Kassavirtalaskelman taulukon arvot lasketaan automaattisesti alla olevien Kuukausitulot- ja Kuukausikulut-laskentataulukkojen arvojen perusteella."]
[null,"Kassavirtalaskelma","Suunniteltu","Todellinen","Varianssi"]
[null,"Tulot yhteensä",{"$f":"Tulot[[#Totals],[Suunniteltu]]","v":{"v":5700,"d":"5,700"}},{"$f":"Tulot[[#Totals],[Todellinen]]","v":{"v":5500,"d":"5,500"}},{"$f":"Tulot[[#Totals],[Varianssi]]","v":-200}]
[null,"Menot yhteensä",{"$f":"Kulut[[#Totals],[Suunniteltu]]","v":{"v":3603,"d":"3,603"}},{"$f":"Kulut[[#Totals],[Toteutunut]]","v":{"v":3655,"d":"3,655"}},{"$f":"Kulut[[#Totals],[Varianssi]]","v":-52}]
[null,"Varat yhteensä",{"$f":"C7-C8","v":{"v":2097,"d":"2,097"}},{"$f":"D7-D8","v":{"v":1845,"d":"1,845"}},{"$f":"SUBTOTAL(109,Kassavirta[Varianssi])","v":-252}]

{"sheet":"Kuukausitulot","index":1,"n_rows":9,"n_cols":5,"rows_kept":9}
[null,{"$f":"Nimi","v":"Nimi"}]
[null,{"$f":"Budjettiotsikko","v":"Perheen budjetti"}]
[null,{"$f":"Kuukausi","v":"tammikuu"}]
[null,{"$f":"Vuosi","v":2017}]
[null,"Kuukausitulot","Suunniteltu","Todellinen","Varianssi"]
[null,"Tulot 1",{"v":4000,"d":"4,000"},{"v":4000,"d":"4,000"},{"$f":"Tulot[[#This Row],[Todellinen]]-Tulot[[#This Row],[Suunniteltu]]","v":0}]
[null,"Tulot 2",{"v":1400,"d":"1,400"},{"v":1500,"d":"1,500"},{"$f":"Tulot[[#This Row],[Todellinen]]-Tulot[[#This Row],[Suunniteltu]]","v":100}]
[null,"Muut tulot",300,0,{"$f":"Tulot[[#This Row],[Todellinen]]-Tulot[[#This Row],[Suunniteltu]]","v":-300}]
[null,"Tulot yhteensä",{"$f":"SUBTOTAL(109,Tulot[Suunniteltu])","v":{"v":5700,"d":"5,700"}},{"$f":"SUBTOTAL(109,Tulot[Todellinen])","v":{"v":5500,"d":"5,500"}},{"$f":"SUBTOTAL(109,Tulot[Varianssi])","v":-200}]

{"sheet":"Kuukausikulut","index":2,"n_rows":26,"n_cols":5,"rows_kept":26}
[null,{"$f":"Nimi","v":"Nimi"}]
[null,{"$f":"Budjettiotsikko","v":"Perheen budjetti"}]
[null,{"$f":"Kuukausi","v":"tammikuu"}]
[null,{"$f":"Vuosi","v":2017}]
[null,"Kuukausikulut","Suunniteltu","Toteutunut","Varianssi"]
[null,"Asuminen",{"v":1500,"d":"1,500"},{"v":1500,"d":"1,500"},{"$f":"Kulut[[#This Row],[Suunniteltu]]-Kulut[[#This Row],[Toteutunut]]","v":0}]
[null,"Ostoslista",250,280,{"$f":"Kulut[[#This Row],[Suunniteltu]]-Kulut[[#This Row],[Toteutunut]]","v":-30}]
[null,"Puhelin",38,38,{"$f":"Kulut[[#This Row],[Suunniteltu]]-Kulut[[#This Row],[Toteutunut]]","v":0}]
[null,"Sähkö/kaasu",65,78,{"$f":"Kulut[[#This Row],[Suunniteltu]]-Kulut[[#This Row],[Toteutunut]]","v":-13}]
[null,"Vesi/viemäröinti/jätteet",25,21,{"$f":"Kulut[[#This Row],[Suunniteltu]]-Kulut[[#This Row],[Toteutunut]]","v":4}]
[null,"Kaapeli-TV",75,83,{"$f":"Kulut[[#This Row],[Suunniteltu]]-Kulut[[#This Row],[Toteutunut]]","v":-8}]
[null,"Internet",60,60,{"$f":"Kulut[[#This Row],[Suunniteltu]]-Kulut[[#This Row],[Toteutunut]]","v":0}]
[null,"Huolto/korjaukset",0,60,{"$f":"Kulut[[#This Row],[Suunniteltu]]-Kulut[[#This Row],[Toteutunut]]","v":-60}]
[null,"Lastenhoito",180,150,{"$f":"Kulut[[#This Row],[Suunniteltu]]-Kulut[[#This Row],[Toteutunut]]","v":30}]
[null,"Lukukausimaksut",250,250,{"$f":"Kulut[[#This Row],[Suunniteltu]]-Kulut[[#This Row],[Toteutunut]]","v":0}]
[null,"Lemmikkieläimet",75,80,{"$f":"Kulut[[#This Row],[Suunniteltu]]-Kulut[[#This Row],[Toteutunut]]","v":-5}]
[null,"Bussi- ja junaliput",280,260,{"$f":"Kulut[[#This Row],[Suunniteltu]]-Kulut[[#This Row],[Toteutunut]]","v":20}]
[null,"Hyvinvointi",75,65,{"$f":"Kulut[[#This Row],[Suunniteltu]]-Kulut[[#This Row],[Toteutunut]]","v":10}]
[null,"Vakuutukset",255,255,{"$f":"Kulut[[#This Row],[Suunniteltu]]-Kulut[[#This Row],[Toteutunut]]","v":0}]
[null,"Luottokortit",100,100,{"$f":"Kulut[[#This Row],[Suunniteltu]]-Kulut[[#This Row],[Toteutunut]]","v":0}]
[null,"Lainat",0,0,{"$f":"Kulut[[#This Row],[Suunniteltu]]-Kulut[[#This Row],[Toteutunut]]","v":0}]
[null,"Verot",0,0,{"$f":"Kulut[[#This Row],[Suunniteltu]]-Kulut[[#This Row],[Toteutunut]]","v":0}]
[null,"Lahjat/lahjoitukset",150,150,{"$f":"Kulut[[#This Row],[Suunniteltu]]-Kulut[[#This Row],[Toteutunut]]","v":0}]
[null,"Säästöt",225,225,{"$f":"Kulut[[#This Row],[Suunniteltu]]-Kulut[[#This Row],[Toteutunut]]","v":0}]
[null,"Muut",0,0,{"$f":"Kulut[[#This Row],[Suunniteltu]]-Kulut[[#This Row],[Toteutunut]]","v":0}]
[null,"Yhteensä",{"$f":"SUBTOTAL(109,Kulut[Suunniteltu])","v":{"v":3603,"d":"3,603"}},{"$f":"SUBTOTAL(109,Kulut[Toteutunut])","v":{"v":3655,"d":"3,655"}},{"$f":"SUBTOTAL(109,Kulut[Varianssi])","v":-52}]

{"sheet":"KAAVION TIEDOT","index":3,"n_rows":6,"n_cols":4,"rows_kept":6,"hidden":true}
[null,"KAAVION TIEDOT"]
[]
[null,null,"Suunniteltu","Todellinen"]
[null,"Kassavirtalaskelma",{"$f":"Kassavirta[[#Totals],[Suunniteltu]]","v":2097},{"$f":"Kassavirta[[#Totals],[Todellinen]]","v":1845}]
[null,"Kuukausitulot",{"$f":"Tulot[[#Totals],[Suunniteltu]]","v":5700},{"$f":"Tulot[[#Totals],[Todellinen]]","v":5500}]
[null,"Kuukausikulut",{"$f":"Kulut[[#Totals],[Suunniteltu]]","v":3603},{"$f":"Kulut[[#Totals],[Toteutunut]]","v":3655}]